bitfinex/quotes_ETHUSD_20241119
["timestamp","ask_amount","ask_price","bid_price","bid_amount"]
[1732030326961,0.37794519,3099.6,3098.4,0.55]
[1732030327269,0.37794519,3099.6,3098.3,0.8184]
[1732030327270,3.22638,3099.5,3098.9,3.77694]
[1732030327481,3.22658,3099.3,3098.9,0.55]
[1732030327621,3.22653,3099.3,3099.0,0.55]
[1732030328027,3.22674,3099.1,3099.0,0.55]
[1732030328260,3.22726,3098.6,3098.5,0.7514]
[1732030328472,3.22767,3098.3,3097.8,0.7514]
[1732030328674,3.22786,3098.1,3097.8,0.7514]
[1732030328838,0.3761,3099.1,3097.8,0.7514]
[1732030329026,3.22787,3098.1,3097.8,0.7514]
[1732030329230,3.6029,3099.1,3097.4,0.7514]
[1732030329231,3.22796,3098.0,3097.4,0.7514]
[1732030329540,3.22764,3098.3,3097.5,3.2283]
[1732030329741,3.22758,3098.3,3097.5,3.949131]
[1732030329955,3.60666659,3098.6,3097.4,1.397096]
[1732030330159,3.22779,3098.1,3097.5,3.22832]
[1732030330361,3.22756,3098.4,3097.5,0.78570765]
[1732030330526,3.22768,3098.2,3097.5,3.22841]
[1732030330727,3.22789,3098.0,3097.4,0.7514]
[1732030331127,3.22768,3098.2,3097.5,3.22832]
[1732030331382,3.2275,3098.4,3097.7,3.22815]
[1732030331533,3.22759,3098.3,3097.8,0.55]
[1732030331731,3.2278,3098.1,3097.6,0.55]
[1732030331925,3.2278,3098.1,3097.4,0.7514]
[1732030331926,3.22786,3098.1,3097.4,0.7514]
[1732030332129,3.22821,3097.7,3097.4,0.7514]
[1732030332372,3.22802,3097.9,3097.4,0.7514]
[1732030332829,3.22818,3097.8,3097.4,0.7514]
[1732030333369,3.22711,3098.8,3097.4,1.51429065]
[1732030333370,3.0,3098.8,3097.4,1.51429065]
[1732030333664,0.3761,3099.1,3097.5,4.60594]
[1732030333665,3.22774,3098.2,3097.5,4.60594]
[1732030333890,3.22774,3098.2,3097.7,0.55]
[1732030334032,3.22751,3098.4,3097.7,3.77813]
[1732030334228,3.3761,3099.1,3097.6,0.55]
[1732030334432,3.22768,3098.2,3097.6,4.183889]
[1732030334636,3.22767,3098.3,3097.6,0.55]
[1732030334879,3.22791,3098.0,3097.6,0.55]
[1732030335049,3.22809,3097.8,3097.6,0.55]
[1732030335249,3.22787,3098.1,3097.6,0.55]
[1732030335454,3.22797,3098.0,3097.6,0.55]
[1732030335969,3.22715,3098.8,3098.2,0.55]
[1732030336157,0.23671486,3098.7,3098.4,0.55]
[1732030336498,3.22715,3098.7,3098.6,0.55]
[1732030336639,3.22715,3098.7,3098.3,0.823]
[1732030336640,3.22733,3098.6,3098.4,0.55]
[1732030336836,3.22715,3098.7,3098.4,0.55]
[1732030337389,3.22699,3098.9,3098.4,0.55]
[1732030337837,3.22711,3098.8,3098.4,0.55]
[1732030338041,3.22699,3098.9,3098.4,0.55]
[1732030338042,6.45403,3098.9,3098.4,0.55]
[1732030338242,3.22707,3098.8,3098.4,0.55]
[1732030338436,3.22699,3098.9,3098.4,0.55]
[1732030338676,3.60227,3099.7,3098.4,0.55]
[1732030338677,3.22717,3098.7,3098.4,0.55]
[1732030338887,3.22736,3098.5,3098.4,0.55]
[1732030339057,3.22788,3098.0,3097.9,0.8255]
[1732030339583,3.22784,3098.1,3097.9,0.8255]
[1732030339791,3.22755,3098.4,3097.9,0.8255]
[1732030340139,3.22728,3098.6,3097.9,4.05349]
[1732030340468,3.22728,3098.6,3098.2,0.55]
[1732030340672,3.22738,3098.5,3098.0,0.55]
[1732030340843,3.22725,3098.7,3098.2,0.55]
[1732030341048,3.22734,3098.6,3098.2,0.55]
[1732030341282,3.22711,3098.8,3098.3,0.55]
[1732030341462,3.22727,3098.6,3098.3,0.55]
[1732030341643,3.0,3099.1,3097.9,0.8255]
[1732030341840,3.22748,3098.4,3097.9,0.8255]
[1732030342155,3.22757,3098.3,3097.9,0.8255]
[1732030342347,3.22748,3098.4,3097.9,0.8255]
[1732030342543,3.22775,3098.2,3097.9,0.8255]
[1732030342740,3.22751,3098.4,3097.9,0.8255]
[1732030342956,3.22727,3098.6,3098.0,0.55]
[1732030343160,3.22757,3098.4,3098.0,0.55]
[1732030343387,3.22778,3098.1,3098.0,0.55]
[1732030343589,3.22804,3097.9,3097.4,0.8281]
[1732030343883,3.22788,3098.0,3097.4,0.8281]
[1732030344084,3.22786,3098.1,3097.4,0.8281]
[1732030344382,3.22797,3098.0,3097.4,0.8281]
[1732030344543,3.22797,3098.0,3097.4,4.05656]
[1732030344982,3.2281,3097.8,3097.4,0.8281]
[1732030345183,3.22816,3097.8,3097.4,0.8281]
[1732030345383,3.228,3097.9,3097.4,0.8281]
[1732030345687,3.22721,3098.7,3097.5,0.8281]
[1732030345845,3.22742,3098.5,3097.6,4.05636]
[1732030346046,3.22763,3098.3,3097.7,3.2281]
[1732030346360,3.22763,3098.3,3097.8,0.728446]
[1732030346572,3.22785,3098.1,3097.7,0.55]
[1732030346894,0.3861,3099.2,3097.7,0.55]
[1732030346895,3.22754,3098.4,3097.7,3.77817]
[1732030347193,3.22737,3098.5,3098.1,0.55]
[1732030347482,3.22748,3098.4,3098.0,0.55]
[1732030348057,3.22731,3098.6,3098.0,0.55]
[1732030348268,3.0,3098.7,3098.0,0.55]
[1732030348269,3.22754,3098.4,3098.0,0.55]
[1732030348479,0.23805144,3098.5,3098.0,0.55]
[1732030348696,1.95279677,3099.7,3098.0,0.55]
[1732030348865,0.1400097,3100.0,3099.6,3.22613]
[1732030349062,0.1400097,3100.0,3099.5,0.7581]
[1732030349063,0.1400097,3100.0,3099.7,0.398423]
[1732030349258,0.1400097,3100.0,3099.6,0.55]
[1732030350108,3.3658197,3100.0,3099.6,0.55]
[1732030350325,3.3658197,3100.0,3099.4,0.55]
[1732030350605,3.22605,3099.8,3099.4,0.55]
[1732030350783,3.22613,3099.7,3099.4,0.55]
[1732030351863,3.22592,3099.9,3099.4,0.55]
[1732030352059,3.22592,3099.9,3099.3,0.55]
[1732030352263,3.2262,3099.7,3099.3,0.55]
[1732030352512,3.2262,3099.7,3099.2,0.55]
[1732030352813,0.1400097,3100.0,3099.8,3.22597]
[1732030352996,0.1400097,3100.0,3099.9,3.77591]
[1732030353168,0.1400097,3100.0,3099.9,4.476111]
[1732030354204,0.1400097,3100.0,3099.9,1.250201]
[1732030354407,0.1400097,3100.0,3099.9,0.55]
[1732030354611,0.1400097,3100.0,3099.1,0.8155]
[1732030354781,3.22606,3099.8,3099.1,1.09548246]
[1732030355103,3.22606,3099.8,3099.1,3.8155]
[1732030355406,0.1400097,3100.0,3099.2,3.0]
[1732030355566,3.7419797,3100.0,3099.1,0.8155]
[1732030355768,3.22609,3099.8,3099.1,0.8155]
[1732030356118,3.22591,3099.9,3098.7,0.8278]
[1732030356326,3.2262,3099.7,3098.8,0.3888148]
[1732030356469,0.5161097,3100.0,3098.8,0.3888148]
[1732030356665,3.22652,3099.4,3098.7,0.8278]
[1732030357692,3.22664,3099.2,3098.7,0.8278]
[1732030358925,3.22611,3099.7,3098.8,0.55]
[1732030359129,0.01,3099.6,3098.3,0.8182]
[1732030359279,0.01,3099.6,3097.2,0.01]
[1732030359280,3.2272,3098.7,3097.8,0.8182]
[1732030359483,3.22704,3098.9,3097.9,0.404638]
[1732030359707,3.22695,3098.9,3097.9,0.404638]
[1732030359873,3.22726,3098.7,3097.9,0.404638]
[1732030360078,3.22726,3098.7,3097.9,3.22799]
[1732030360379,3.22728,3098.6,3097.8,0.8182]
[1732030360705,3.22728,3098.6,3097.9,0.55]
[1732030361017,3.2274,3098.5,3098.1,0.55]
[1732030361187,3.22768,3098.2,3098.0,0.65244028]
[1732030361520,3.22768,3098.2,3097.8,0.8182]
[1732030361723,3.22749,3098.4,3097.8,0.8182]
[1732030362376,0.3761,3099.0,3097.8,0.8182]
[1732030362377,3.22758,3098.3,3097.8,0.8182]
[1732030362781,3.22769,3098.2,3097.8,0.8182]
[1732030363330,3.22779,3098.1,3097.8,0.8182]
[1732030363635,3.22779,3098.1,3097.9,0.55]
[1732030363806,3.45707462,3099.0,3097.9,0.55]
[1732030363973,3.22754,3098.4,3097.9,0.55]
[1732030364180,3.22782,3098.1,3097.9,0.55]
[1732030364492,3.22788,3098.0,3097.9,0.55]
[1732030364704,3.22788,3098.0,3097.0,6.22883]
[1732030364705,3.22788,3098.0,3097.4,0.797]
[1732030365023,3.2282,3097.7,3097.4,0.797]
[1732030365180,3.22833,3097.6,3096.8,0.822]
[1732030365384,3.22811,3097.8,3096.8,0.822]
[1732030365385,3.22811,3097.8,3097.1,0.63782011]
[1732030365581,3.22796,3098.0,3097.1,0.63782011]
[1732030365792,3.22796,3098.0,3097.2,0.38667401]
[1732030366027,3.22787,3098.1,3097.3,3.22859]
[1732030366323,3.22761,3098.3,3097.5,3.2284]
[1732030366531,3.22769,3098.2,3097.5,0.55]
[1732030366738,0.3761,3098.7,3097.8,0.55]
[1732030366739,3.22739,3098.5,3097.8,0.55]
[1732030366921,6.45486,3098.5,3098.0,0.55]
[1732030367243,3.22715,3098.7,3098.0,0.55]
[1732030367534,3.22774,3098.2,3098.0,0.55]
[1732030367743,3.22759,3098.3,3097.6,0.55]
[1732030367886,3.22784,3098.1,3097.6,1.003096]
[1732030368088,0.3761,3098.3,3097.6,0.55]
[1732030368450,3.22803,3097.9,3097.6,0.55]
[1732030368740,3.22796,3098.0,3097.6,0.55]
[1732030369245,3.22789,3098.0,3097.6,0.55]
[1732030369949,3.22809,3097.8,3097.6,0.55]
[1732030370249,3.22789,3098.0,3097.6,0.55]
[1732030371808,3.228,3097.9,3097.6,0.55]
[1732030372008,3.22777,3098.2,3097.6,0.55]
[1732030372314,3.22794,3098.0,3097.6,0.55]
[1732030372700,3.22815,3097.8,3097.6,0.55]
[1732030373244,0.3761,3098.6,3097.1,3.63782011]
[1732030373245,3.2284,3097.6,3097.1,1.46792011]
[1732030373399,3.2284,3097.6,3097.1,2.1544209]
[1732030373724,3.22786,3098.1,3097.2,3.22866]
[1732030373934,3.22786,3098.1,3097.2,3.44410209]
[1732030374100,6.45572,3098.1,3097.2,3.44410209]
[1732030374297,0.3761,3098.6,3097.3,7.38778547]
[1732030374533,3.22799,3097.9,3097.4,0.55]
[1732030374744,3.22783,3098.1,3097.4,0.55]
[1732030374906,6.45569,3098.1,3097.4,0.55]
[1732030375241,3.22783,3098.1,3097.6,0.55]
[1732030375440,3.22801,3097.9,3097.6,0.55]
[1732030375645,3.22814,3097.8,3097.3,0.55]
[1732030375951,3.22824,3097.7,3097.3,1.07333622]
[1732030376258,3.22839,3097.6,3097.2,0.21544209]
[1732030377050,3.22839,3097.6,3097.1,1.46792011]
[1732030377051,3.22807,3097.9,3097.3,0.16833622]
[1732030377439,3.22815,3097.8,3097.4,0.55]
[1732030377615,3.2279,3098.0,3097.4,0.55]
[1732030377808,3.22783,3098.1,3097.4,0.55]
[1732030378011,3.2276,3098.3,3097.4,0.94468562]
[1732030378211,3.2276,3098.3,3097.6,1.3412]
[1732030378470,3.22725,3098.7,3097.6,1.3412]
[1732030378615,3.22725,3098.7,3097.7,3.2281]
[1732030378816,3.22743,3098.5,3097.9,0.55]
[1732030379347,3.22737,3098.5,3097.9,0.55]
[1732030379742,3.22737,3098.5,3097.9,1.19709278]
[1732030379927,3.22734,3098.6,3097.9,1.19709278]
[1732030380128,0.3761,3099.0,3097.9,0.55]
[1732030380356,3.22809,3097.8,3097.7,0.55]
[1732030380540,3.22796,3098.0,3097.7,0.55]
[1732030380922,0.3761,3098.3,3097.7,0.55]
[1732030381153,3.22778,3098.1,3097.7,0.55]
[1732030381453,0.3761,3098.3,3097.7,0.55]
[1732030381454,3.22799,3097.9,3097.7,0.55]
[1732030381855,3.2285,3097.5,3097.2,0.8064]
[1732030382045,3.22768,3098.2,3097.2,0.8064]
[1732030382357,3.22831,3097.6,3097.2,0.8064]
[1732030382870,3.22841,3097.5,3097.2,0.8064]
[1732030383164,3.22839,3097.6,3097.2,0.8064]
[1732030383317,0.3761,3098.3,3097.2,0.8064]
[1732030383522,3.22768,3098.2,3097.3,3.77856]
[1732030383772,3.22768,3098.2,3097.0,3.59933317]
[1732030383773,3.22727,3098.6,3097.7,0.55]
[1732030383923,3.22736,3098.6,3097.9,0.55]
[1732030384124,3.22734,3098.6,3097.9,0.55]
[1732030384353,3.22734,3098.6,3097.9,0.927808]
[1732030384648,0.3761,3099.2,3097.9,0.927808]
[1732030384847,3.22736,3098.6,3098.1,0.55]
[1732030385121,3.22738,3098.5,3098.1,0.55]
[1732030385437,0.3761,3099.2,3098.1,0.7228908]
[1732030385637,3.22719,3098.7,3098.1,0.7228908]
[1732030385878,1.290705,3099.3,3098.1,0.7228908]
[1732030386166,3.59933317,3099.8,3098.1,0.7228908]
[1732030386167,0.1400097,3100.0,3098.9,3.22695]
[1732030386461,0.1400097,3100.0,3098.8,0.8119]
[1732030386462,0.1400097,3100.0,3099.7,3.77611]
[1732030386636,0.1400097,3100.0,3099.9,0.55]
[1732030387026,0.1400097,3100.0,3099.9,3.77591]
[1732030387520,0.1400097,3100.0,3099.8,0.55]
[1732030388251,0.1400097,3100.0,3099.8,1.008805]
[1732030389175,0.1400097,3100.0,3099.8,0.55]
[1732030389522,0.1400097,3100.0,3099.5,0.55]
[1732030389737,3.3659097,3100.0,3099.5,0.55]
[1732030389948,3.22594,3099.9,3099.5,0.55]
[1732030390175,3.3658297,3100.0,3099.5,0.55]
[1732030390325,0.1400097,3100.0,3099.5,0.55]
[1732030390525,0.1400097,3100.0,3099.5,0.74963381]
[1732030392372,3.3658397,3100.0,3099.4,0.55]
[1732030392695,0.1400097,3100.0,3099.4,3.77641]
[1732030392900,0.1400097,3100.0,3099.7,0.8151]
[1732030393103,0.1400097,3100.0,3099.8,3.77593]
[1732030394096,0.1400097,3100.0,3099.9,3.77591]
[1732030394305,0.1400097,3100.0,3099.9,4.59171]
[1732030394507,0.1400097,3100.0,3099.9,5.696091]
[1732030394798,3.22444,3101.4,3100.6,3.22507]
[1732030394997,3.60028,3101.6,3100.7,1.3424]
[1732030395160,3.22418,3101.6,3100.9,0.55]
[1732030395358,3.22396,3101.8,3101.0,3.22475]
[1732030395558,3.22421,3101.6,3100.9,1.0389857]
[1732030395803,3.22421,3101.6,3100.9,3.77484]
[1732030396009,3.22421,3101.6,3100.9,0.55]
[1732030396212,3.22396,3101.8,3101.1,0.55]
[1732030396213,3.22397,3101.8,3101.1,0.55]
[1732030396698,3.22405,3101.7,3100.9,3.77485]
[1732030396868,3.22431,3101.5,3100.9,0.951736]
[1732030397201,3.22383,3101.9,3100.8,0.55]
[1732030397375,3.22457,3101.2,3100.8,0.55]
[1732030397573,3.22477,3101.0,3100.8,0.55]
[1732030397906,3.22474,3101.1,3100.2,4.03962]
[1732030398060,3.22474,3101.1,3100.4,3.22528]
[1732030398261,6.449,3101.3,3100.5,3.22527]
[1732030398491,3.22455,3101.2,3100.4,3.9840256]
[1732030398692,3.22383,3101.9,3100.3,0.322556]
[1732030398995,0.3861,3102.0,3100.3,0.322556]
[1732030398996,3.22501,3100.8,3100.4,0.55]
[1732030399337,3.2248,3101.0,3100.3,3.77548]
[1732030399489,3.2248,3101.0,3100.5,0.55]
[1732030399693,3.2246,3101.2,3100.5,0.55]
[1732030399694,3.22468,3101.1,3100.5,0.55]
[1732030399919,3.22493,3100.9,3100.5,0.55]
[1732030400333,3.22505,3100.8,3100.5,0.55]
[1732030400534,3.22486,3101.0,3099.8,0.7531]
[1732030400838,3.22534,3100.5,3099.8,3.97904]
[1732030400989,3.22525,3100.6,3099.8,7.602864]
[1732030401189,3.22534,3100.5,3099.8,4.376924]
[1732030401436,3.22543,3100.4,3099.8,1.151004]
[1732030401593,3.22543,3100.4,3099.8,0.7531]
[1732030401791,9.67365,3101.2,3099.8,0.7531]
[1732030402014,3.22555,3100.3,3099.8,0.7531]
[1732030402200,3.22565,3100.2,3099.8,0.7531]
[1732030402734,3.22571,3100.1,3099.8,0.7531]
[1732030403042,3.0,3100.9,3099.9,0.55]
[1732030403346,6.22455,3101.2,3100.1,0.55]
[1732030403347,3.22519,3100.6,3100.1,0.55]
[1732030403630,3.22398,3101.8,3101.1,3.22463]
[1732030403834,3.22398,3101.8,3101.4,0.55]
[1732030404141,3.22375,3102.0,3101.4,0.55]
[1732030404633,3.22422,3101.6,3101.4,0.55]
[1732030405444,3.22396,3101.8,3101.4,0.55]
[1732030405445,3.22405,3101.7,3101.4,0.55]
[1732030405733,3.22381,3102.0,3101.4,0.55]
[1732030405907,3.22396,3101.8,3101.4,0.55]
[1732030406127,3.22316,3102.6,3101.8,3.22385]
[1732030406319,3.22348,3102.3,3101.6,0.55]
[1732030406516,3.22304,3102.7,3101.6,1.008108]
[1732030406721,3.22304,3102.7,3102.1,0.55]
[1732030406919,3.3627597,3103.0,3102.3,0.55]
[1732030407230,0.1400097,3103.0,3102.3,0.55]
[1732030407440,3.22298,3102.8,3102.3,0.55]
[1732030407619,3.3627397,3103.0,3102.3,0.55]
[1732030407620,0.1400097,3103.0,3102.3,0.55]
[1732030407819,3.22305,3102.7,3102.3,0.55]
[1732030408029,3.2228,3102.9,3102.3,3.77341]
[1732030408317,0.1400097,3103.0,3102.9,4.56759]
[1732030409216,0.1400097,3103.0,3102.9,8.19972926]
[1732030409415,0.3761,3104.5,3103.4,3.22219]
[1732030409416,3.22142,3104.3,3103.4,3.22219]
[1732030409646,0.3761,3104.5,3103.2,0.7775]
[1732030409864,3.22203,3103.7,3103.2,0.7775]
[1732030410145,3.22133,3104.3,3103.2,0.7775]
[1732030410366,0.3761,3104.5,3103.2,0.7775]
[1732030410367,3.22212,3103.6,3103.2,0.7775]
[1732030410585,0.3761,3104.5,3103.2,0.7775]
[1732030410586,3.22133,3104.3,3103.2,0.7775]
[1732030410760,3.22203,3103.7,3103.2,0.7775]
[1732030411088,3.22179,3103.9,3103.2,4.722167]
[1732030411295,3.22136,3104.3,3103.5,3.22213]
[1732030411441,3.22147,3104.2,3103.8,0.55]
[1732030411643,3.22136,3104.3,3103.8,0.55]
[1732030411879,0.3761,3104.5,3103.3,3.22233]
[1732030411880,3.22161,3104.1,3103.4,0.55]
[1732030412187,0.3761,3104.5,3103.3,0.55]
[1732030412188,3.22192,3103.8,3103.3,0.55]
[1732030412352,3.22185,3103.9,3103.3,0.55]
[1732030412353,3.22203,3103.7,3103.3,0.55]
[1732030412556,3.22198,3103.7,3103.3,0.55]
[1732030412871,3.24123,3104.4,3103.2,0.7775]
[1732030413071,3.22261,3103.1,3102.5,7.04745]
[1732030413383,3.22196,3103.8,3102.6,3.545371]
[1732030413384,3.22249,3103.2,3102.6,3.545371]
[1732030413587,3.22249,3103.2,3102.7,0.7369671]
[1732030413742,0.3761,3102.8,3102.2,0.63729485]
[1732030413949,3.22326,3102.5,3101.9,0.8243]
[1732030414149,3.22332,3102.4,3101.9,1.229127]
[1732030414370,3.22299,3102.7,3102.0,3.22372]
[1732030414573,3.22329,3102.5,3101.9,4.68921709]
[1732030414778,3.22283,3102.9,3102.2,3.22348]
[1732030415044,3.22301,3102.7,3102.0,3.69254171]
[1732030415383,3.22283,3102.9,3101.9,1.46539709]
[1732030415384,3.22283,3102.9,3102.1,3.2236]
[1732030415604,3.22283,3102.9,3102.2,3.5458]
[1732030415888,3.22259,3103.1,3102.5,3.77319]
[1732030416046,3.22267,3103.1,3102.5,0.55]
[1732030416242,3.22267,3103.1,3102.3,0.8265]
[1732030416243,3.22281,3102.9,3102.4,0.55]
[1732030416495,3.22281,3102.9,3102.4,1.009982]
[1732030416496,3.22299,3102.8,3102.4,1.009982]
[1732030416643,3.223,3102.7,3102.4,0.55]
[1732030416840,3.22281,3102.9,3102.4,0.55]
[1732030417078,3.22303,3102.7,3102.4,0.98765]
[1732030417282,3.22303,3102.7,3102.4,0.55]
[1732030417283,3.22317,3102.6,3102.4,0.55]
[1732030417485,0.3761,3103.0,3102.0,0.7971]
[1732030417693,3.22358,3102.2,3102.0,0.7971]
[1732030417844,3.22295,3102.8,3102.0,0.7971]
[1732030418042,3.22298,3102.8,3102.0,0.7971]
[1732030418243,3.22317,3102.6,3102.0,1.26330071]
[1732030418557,3.22317,3102.6,3102.0,4.48702071]
[1732030418946,3.22317,3102.6,3102.1,0.55]
[1732030419187,3.23187,3103.8,3102.1,0.55]
[1732030419188,0.3761,3103.6,3102.1,1.44019278]
[1732030419370,3.22236,3103.4,3102.6,0.55]
[1732030419690,3.22236,3103.4,3102.8,3.77285]
[1732030419847,3.22236,3103.4,3102.8,4.553367]
[1732030420045,3.22209,3103.6,3102.8,4.553367]
[1732030420269,3.22245,3103.3,3102.8,1.330517]
[1732030420457,3.2225,3103.2,3102.8,0.55]
[1732030420657,3.22245,3103.3,3102.8,0.55]
[1732030421072,3.2222,3103.5,3102.8,3.77282]
[1732030421278,3.2222,3103.5,3103.0,0.55]
[1732030421491,3.22199,3103.7,3103.0,0.55]
[1732030421795,3.22201,3103.7,3103.2,0.55]
[1732030421951,3.22175,3103.9,3103.2,4.471956]
[1732030422269,3.24071,3104.9,3102.9,0.458228]
[1732030422270,3.22135,3104.3,3103.8,0.55]
[1732030422589,6.44319,3104.1,3103.6,0.55]
[1732030422747,3.22139,3104.3,3103.6,0.55]
[1732030422943,0.3761,3104.7,3103.9,4.04661]
[1732030422944,0.29677577,3104.2,3103.9,4.04661]
[1732030423183,3.22102,3104.6,3104.0,0.55]
[1732030423390,3.22154,3104.1,3104.0,0.55]
[1732030423892,3.51833803,3104.1,3104.0,0.55]
[1732030424255,3.7557155,3104.1,3104.0,0.55]
[1732030424459,3.51833803,3104.1,3104.0,0.55]
[1732030424873,3.51831475,3104.1,3104.0,0.55]
[1732030425081,3.75568159,3104.1,3104.0,0.55]
[1732030426301,3.51831475,3104.1,3104.0,0.55]
[1732030426593,3.75559137,3104.1,3104.0,0.55]
[1732030426792,3.22237,3103.3,3102.9,0.7631]
[1732030426991,3.22229,3103.4,3102.9,0.7631]
[1732030427491,3.22264,3103.1,3102.9,0.7631]
[1732030427855,3.22249,3103.2,3102.9,0.7631]
[1732030428281,3.22249,3103.2,3103.0,0.55]
[1732030428487,3.22249,3103.2,3102.9,0.7631]
[1732030428488,3.22268,3103.0,3102.9,0.7631]
[1732030429095,3.22258,3103.1,3102.9,0.7631]
[1732030429306,3.22268,3103.0,3102.9,0.7631]
[1732030429659,3.22268,3103.0,3102.9,1.3131]
[1732030429953,3.22268,3103.0,3102.9,0.55]
[1732030430177,3.223,3102.7,3102.6,0.55]
[1732030430662,3.22279,3102.9,3102.6,0.55]
[1732030430859,3.22264,3103.1,3102.6,0.55]
[1732030431178,3.22241,3103.3,3102.6,1.003624]
[1732030431498,3.22241,3103.3,3102.8,0.55]
[1732030431499,0.29702381,3103.2,3102.8,0.55]
[1732030431800,3.22241,3103.3,3102.8,3.77287]
[1732030432115,3.22229,3103.4,3102.8,4.150171]
[1732030432310,0.29727169,3103.3,3102.8,0.927301]
[1732030432515,3.22201,3103.7,3103.2,0.55]
[1732030432827,3.22223,3103.5,3103.2,0.55]
[1732030433020,0.5358441,3103.6,3102.3,3.87473097]
[1732030433021,0.5358441,3103.4,3102.5,0.7979]
[1732030433223,3.22283,3102.9,3102.5,0.7979]
[1732030433525,3.7587541,3102.8,3102.5,0.7979]
[1732030433672,0.29769117,3102.7,3102.5,0.7979]
[1732030433872,0.29769117,3102.6,3102.5,0.7979]
[1732030434282,0.29769117,3102.6,3102.5,1.3479]
[1732030434484,3.22263,3103.1,3102.5,1.90890941]
[1732030434812,3.23165,3104.0,3102.5,1.90890941]
[1732030434813,0.53682597,3103.0,3102.6,0.55]
[1732030434974,0.53682597,3102.9,3102.6,0.55]
[1732030435175,0.53684318,3102.8,3102.6,1.007109]
[1732030435486,0.29823674,3102.7,3102.6,1.007109]
[1732030435708,0.29823674,3102.7,3102.6,0.55]
[1732030436452,3.22264,3103.1,3102.6,0.55]
[1732030436651,0.23893475,3103.0,3102.6,0.55]
[1732030436964,0.23893475,3102.9,3102.6,0.55]
[1732030437162,3.22238,3103.3,3102.8,0.55]
[1732030437163,3.22252,3103.2,3102.8,0.55]
[1732030437459,3.22259,3103.1,3102.8,0.55]
[1732030437612,3.22238,3103.3,3102.6,0.55]
[1732030437613,3.22243,3103.3,3102.6,0.55]
[1732030437813,3.22222,3103.5,3102.6,0.55]
[1732030438052,3.22228,3103.4,3102.9,3.22272]
[1732030438255,3.22228,3103.4,3103.0,0.55]
[1732030438555,3.22238,3103.3,3103.0,0.55]
[1732030438716,3.22227,3103.4,3103.0,0.55]
[1732030439752,3.3761,3104.0,3103.2,0.55]
[1732030440065,3.22217,3103.5,3103.2,0.55]
[1732030440567,3.22228,3103.4,3103.2,0.55]
[1732030440726,3.22217,3103.5,3103.2,0.55]
[1732030440917,3.22235,3103.4,3103.2,0.55]
[1732030441270,3.22237,3103.3,3103.2,0.55]
[1732030441564,3.22175,3103.9,3102.8,0.55]
[1732030441732,3.22217,3103.5,3102.8,3.77284]
[1732030441917,3.22254,3103.2,3103.0,0.55]
[1732030442119,3.22254,3103.2,3102.8,0.55]
[1732030442471,3.22255,3103.2,3102.8,0.55]
[1732030442617,3.2226,3103.1,3102.8,0.55]
[1732030443331,3.22255,3103.2,3102.8,0.55]
[1732030443516,3.3761,3104.0,3102.8,0.55]
[1732030443736,3.22255,3103.2,3102.8,0.55]
[1732030443990,3.22255,3103.2,3102.8,1.004604]
[1732030444282,3.22268,3103.1,3102.8,1.004604]
[1732030444487,3.22255,3103.2,3102.8,0.55]
[1732030444841,3.22279,3102.9,3102.8,0.55]
[1732030445059,0.3761,3103.3,3102.4,0.7786]
[1732030445233,3.22313,3102.6,3102.4,0.7786]
[1732030445444,3.2232,3102.5,3102.4,0.7786]
[1732030445683,3.2232,3102.5,3101.4,0.01]
[1732030445684,3.22368,3102.1,3101.9,1.41136908]
[1732030445839,3.0,3102.9,3101.9,1.41136908]
[1732030446674,3.22363,3102.1,3101.9,1.41136908]
[1732030446889,3.22343,3102.3,3101.9,1.41136908]
[1732030447035,3.22326,3102.5,3101.9,5.42105699]
[1732030447243,3.22304,3102.7,3102.1,3.22362]
[1732030447445,3.22304,3102.7,3102.2,3.22351]
[1732030447689,6.44614,3102.7,3102.4,0.55]
[1732030447886,3.22315,3102.6,3102.2,0.55]
[1732030448389,3.22352,3102.2,3101.9,1.41136908]
[1732030448596,3.22335,3102.4,3101.9,1.41136908]
[1732030448948,3.22314,3102.6,3101.9,1.87488899]
[1732030449149,3.22314,3102.6,3102.0,3.22371]
[1732030449350,3.22316,3102.6,3102.0,3.22371]
[1732030449583,6.44635,3102.6,3102.1,0.55]
[1732030449794,3.22316,3102.6,3102.1,0.55]
[1732030449998,3.22339,3102.4,3102.0,0.55]
[1732030450163,3.22312,3102.6,3102.0,1.3822429]
[1732030450492,0.3761,3103.1,3101.9,4.63509908]
[1732030450493,3.22372,3102.0,3101.9,1.41136908]
[1732030450698,0.3861,3103.1,3101.9,1.41136908]
[1732030450699,3.22364,3102.1,3101.9,1.41136908]
[1732030451398,3.2236,3102.2,3101.9,1.41136908]
[1732030451744,3.1736,3102.2,3102.0,0.55]
[1732030451960,3.22362,3102.1,3102.0,0.55]
[1732030452393,3.22372,3102.0,3101.9,0.63276908]
[1732030452985,3.46243154,3102.0,3101.9,0.63276908]
[1732030453267,3.0,3102.4,3101.8,0.787]
[1732030453467,6.56290729,3102.7,3101.8,0.787]
[1732030453669,3.22307,3102.7,3102.0,6.44728]
[1732030453976,0.3761,3103.1,3102.3,3.2234]
[1732030454194,3.7173515,3103.4,3102.8,3.22289]